fUSD/lending_fUSD_20250524
["ID","MTS","AMOUNT","RATE_DAILY","PERIOD"]
[362264232,1748128240422,-420.0,0.00019178,2]
[362264233,1748128240431,-420.0,0.00019178,2]
[362264234,1748128240440,-420.0,0.00019178,2]
[362264235,1748128240450,-569.31908897,0.00019178,2]
[362264236,1748128240459,-420.0,0.00019178,2]
[362264237,1748128240469,-420.0,0.00019178,2]
[362264238,1748128240478,-420.0,0.00019178,2]
[362264239,1748128240488,-420.0,0.00019178,2]
[362264240,1748128240497,-420.0,0.00019178,2]
[362264241,1748128240507,-721.79,0.00019178,2]
[362264242,1748128240516,-420.0,0.00019178,2]
[362264243,1748128240525,-420.0,0.00019178,2]
[362264244,1748128240535,-420.0,0.00019178,2]
[362264245,1748128240544,-420.0,0.00019178,2]
[362264246,1748128240554,-466.41,0.00019178,2]
[362264247,1748128240563,-156.587,0.00019178,2]
[362264248,1748128240575,-2095.72707714,0.00019193,2]
[362264249,1748128240585,-873.45077104,0.000192,2]
[362264250,1748128240602,-500.0,0.00019204,2]
[362264251,1748128240618,-274.58810457,0.00019205,2]
[362264252,1748128240628,-420.0,0.00019205,2]
[362264253,1748128240638,-420.0,0.00019205,2]
[362264254,1748128240648,-471.99881712,0.00019205,2]
[362264255,1748128240658,-420.0,0.00019205,2]
[362264256,1748128240669,-542.97110951,0.00019205,2]
[362264257,1748128240679,-420.0,0.00019205,2]
[362264258,1748128240689,-420.0,0.00019205,2]
[362264259,1748128240699,-429.22999202,0.00019205,2]
[362264260,1748128240709,-420.0,0.00019205,2]
[362264261,1748128240720,-420.0,0.00019205,2]
[362264262,1748128240730,-420.0,0.00019205,2]
[362264263,1748128240740,-420.0,0.00019205,2]
[362264264,1748128240750,-420.0,0.00019205,2]
[362264265,1748128240760,-420.0,0.00019205,2]
[362264266,1748128240770,-420.0,0.00019205,2]
[362264267,1748128240780,-275.42008568,0.00019205,2]
[362264268,1748128240790,-420.0,0.00019205,2]
[362264269,1748128240800,-420.0,0.00019205,2]
[362264270,1748128240811,-420.0,0.00019205,2]
[362264271,1748128240821,-420.0,0.00019205,2]
[362264272,1748128240831,-420.0,0.00019205,2]
[362264273,1748128240841,-420.0,0.00019205,2]
[362264274,1748128240851,-420.0,0.00019205,2]
[362264275,1748128240861,-420.0,0.00019205,2]
[362264276,1748128240871,-420.0,0.00019205,2]
[362264277,1748128240881,-420.0,0.00019205,2]
[362264278,1748128240891,-420.0,0.00019205,2]
[362264279,1748128240901,-420.0,0.00019205,2]
[362264280,1748128240912,-420.0,0.00019205,2]
[362264281,1748128240922,-420.0,0.00019205,2]
[362264282,1748128240932,-420.0,0.00019205,2]
[362264283,1748128240942,-420.0,0.00019205,2]
[362264284,1748128240953,-420.0,0.00019205,2]
[362264285,1748128240963,-420.0,0.00019205,2]
[362264286,1748128240974,-420.0,0.00019205,2]
[362264287,1748128240984,-420.0,0.00019205,2]
[362264288,1748128240994,-420.0,0.00019205,2]
[362264289,1748128241003,-469.48655194,0.00019205,2]
[362264290,1748128241013,-420.0,0.00019205,2]
[362264291,1748128241023,-424.03974855,0.00019205,2]
[362264292,1748128241034,-321.35165344,0.00019205,2]
[362264293,1748128241044,-420.0,0.00019205,2]
[362264294,1748128241055,-420.0,0.00019205,2]
[362264295,1748128241066,-420.0,0.00019205,2]
[362264296,1748128241076,-420.0,0.00019205,2]
[362264297,1748128241085,-420.0,0.00019205,2]
[362264298,1748128241096,-420.0,0.00019205,2]
[362264299,1748128241106,-463.46845306,0.00019205,2]
[362264300,1748128241118,-330.32,0.00019205,2]
[362264301,1748128241127,-420.0,0.00019205,2]
[362264302,1748128241138,-158.20908644,0.00019205,2]
[362264303,1748128241148,-420.0,0.00019205,2]
[362264304,1748128241158,-420.0,0.00019205,2]
[362264305,1748128241168,-420.0,0.00019205,2]
[362264306,1748128241178,-420.0,0.00019205,2]
[362264307,1748128241188,-420.0,0.00019205,2]
[362264308,1748128241198,-420.0,0.00019205,2]
[362264309,1748128241209,-1856.9,0.00019205,2]
[362264310,1748128241219,-403.744631,0.00019205,2]
[362264311,1748128241229,-437.53171365,0.00019205,2]
[362264312,1748128241238,-420.0,0.00019205,2]
[362264313,1748128241249,-420.0,0.00019205,2]
[362264314,1748128241258,-356.46018373,0.00019205,2]
[362264315,1748128241268,-441.86,0.00019205,2]
[362264316,1748128241279,-420.0,0.00019205,2]
[362264317,1748128241288,-420.0,0.00019205,2]
[362264318,1748128241299,-420.0,0.00019205,2]
[362264319,1748128241308,-420.0,0.00019205,2]
[362264320,1748128241318,-420.0,0.00019205,2]
[362264321,1748128241328,-420.0,0.00019205,2]
[362264322,1748128241338,-420.0,0.00019205,2]
[362264323,1748128241347,-1098.4,0.00019205,2]
[362264324,1748128241358,-463.32340476,0.00019205,2]
[362264325,1748128241368,-420.0,0.00019205,2]
[362264326,1748128241378,-420.0,0.00019205,2]
[362264327,1748128241388,-420.0,0.00019205,2]
[362264328,1748128241398,-420.0,0.00019205,2]
[362264329,1748128241408,-420.0,0.00019205,2]
[362264330,1748128241418,-420.0,0.00019205,2]
[362264331,1748128241428,-985.24,0.00019205,2]
[362264332,1748128241439,-420.0,0.00019205,2]
[362264333,1748128241449,-420.0,0.00019205,2]
[362264334,1748128241459,-420.0,0.00019205,2]
[362264335,1748128241469,-420.0,0.00019205,2]
[362264336,1748128241478,-420.0,0.00019205,2]
[362264337,1748128241488,-420.0,0.00019205,2]
[362264338,1748128241498,-333.84050053,0.00019205,2]
[362264339,1748128241507,-420.0,0.00019205,2]
[362264340,1748128241517,-420.0,0.00019205,2]
[362264341,1748128241527,-420.0,0.00019205,2]
[362264342,1748128241536,-420.0,0.00019205,2]
[362264343,1748128241546,-365.4,0.00019205,2]
[362264344,1748128241556,-315.03866044,0.00019205,2]
[362264345,1748128241566,-420.0,0.00019205,2]
[362264346,1748128241579,-420.0,0.00019205,2]
[362264347,1748128241589,-420.0,0.00019205,2]
[362264348,1748128241598,-420.0,0.00019205,2]
[362264349,1748128241608,-420.0,0.00019205,2]
[362264350,1748128241620,-420.0,0.00019205,2]
[362264351,1748128241630,-420.0,0.00019205,2]
[362264352,1748128241640,-420.0,0.00019205,2]
[362264353,1748128241651,-3151.76,0.00019205,2]
[362264354,1748128241660,-420.0,0.00019205,2]
[362264355,1748128241670,-555.74,0.00019205,2]
[362264356,1748128241680,-420.0,0.00019205,2]
[362264357,1748128241690,-420.0,0.00019205,2]
[362264358,1748128241699,-420.0,0.00019205,2]
[362264359,1748128241709,-420.0,0.00019205,2]
[362264360,1748128241719,-1907.22,0.00019205,2]
[362264361,1748128241728,-552.75823452,0.00019205,2]
[362264362,1748128241738,-420.0,0.00019205,2]
[362264363,1748128241748,-420.0,0.00019205,2]
[362264364,1748128241953,-420.0,0.00019205,2]
[362264365,1748128241966,-420.0,0.00019205,2]
[362264366,1748128241976,-420.0,0.00019205,2]
[362264367,1748128241986,-420.0,0.00019205,2]
[362264368,1748128241999,-1270.47,0.00019205,2]
[362264369,1748128242009,-420.0,0.00019205,2]
[362264370,1748128242019,-420.0,0.00019205,2]
[362264371,1748128242030,-500.84,0.00019205,2]
[362264372,1748128242040,-420.0,0.00019205,2]
[362264373,1748128242049,-420.0,0.00019205,2]
[362264374,1748128242059,-420.0,0.00019205,2]
[362264375,1748128242069,-420.0,0.00019205,2]
[362264376,1748128242078,-564.31,0.00019205,2]
[362264377,1748128242088,-420.0,0.00019205,2]
[362264378,1748128242098,-420.0,0.00019205,2]
[362264379,1748128242108,-420.0,0.00019205,2]
[362264380,1748128242119,-263.57,0.00019205,2]
[362264381,1748128242129,-569.926542,0.00019205,2]
[362264382,1748128242139,-420.0,0.00019205,2]
[362264383,1748128242149,-420.0,0.00019205,2]
[362264384,1748128242159,-420.0,0.00019205,2]
[362264385,1748128242168,-420.0,0.00019205,2]
[362264386,1748128242178,-420.0,0.00019205,2]
[362264387,1748128242188,-1497.71,0.00019205,2]
[362264388,1748128242198,-420.0,0.00019205,2]
[362264389,1748128242208,-822.31,0.00019205,2]
[362264390,1748128242217,-420.0,0.00019205,2]
[362264391,1748128242227,-420.0,0.00019205,2]
[362264392,1748128242236,-420.0,0.00019205,2]
[362264393,1748128242246,-2131.86,0.00019205,2]
[362264394,1748128242256,-295.88238948,0.00019205,2]
[362264395,1748128242266,-420.0,0.00019205,2]
[362264396,1748128242276,-420.0,0.00019205,2]
[362264397,1748128242285,-372.49771507,0.00019205,2]
[362264398,1748128242294,-420.0,0.00019205,2]
[362264399,1748128242304,-1551.8,0.00019205,2]
[362264400,1748128242313,-420.0,0.00019205,2]
[362264401,1748128242323,-420.0,0.00019205,2]
[362264402,1748128242333,-420.0,0.00019205,2]
[362264403,1748128242342,-420.0,0.00019205,2]
[362264404,1748128242352,-721.79,0.00019205,2]
[362264406,1748128242363,-420.0,0.00019205,2]
[362264408,1748128242373,-420.0,0.00019205,2]
[362264409,1748128242383,-466.41,0.00019205,2]
[362264411,1748128242392,-150.0,0.00019205,2]
[362264412,1748128242401,-420.0,0.00019232,2]
[362264413,1748128242411,-420.0,0.00019232,2]
[362264415,1748128242422,-420.0,0.00019232,2]
[362264417,1748128242431,-420.0,0.00019232,2]
[362264418,1748128242442,-420.0,0.00019232,2]
[362264419,1748128242452,-420.0,0.00019232,2]
[362264420,1748128242462,-420.0,0.00019232,2]
[362264421,1748128242471,-379.43532036,0.00019232,2]
[362264422,1748128242481,-420.0,0.00019232,2]
[362264423,1748128242490,-420.0,0.00019232,2]
[362264424,1748128242500,-420.0,0.00019232,2]
[362264425,1748128242510,-420.0,0.00019232,2]
[362264426,1748128242520,-420.0,0.00019232,2]
[362264428,1748128242530,-420.0,0.00019232,2]
[362264429,1748128242539,-420.0,0.00019232,2]
[362264431,1748128242549,-420.0,0.00019232,2]
[362264433,1748128242558,-420.0,0.00019232,2]
[362264434,1748128242568,-420.0,0.00019232,2]
[362264435,1748128242578,-317.619829,0.00019232,2]
[362264437,1748128242587,-420.0,0.00019232,2]
[362264438,1748128242597,-420.0,0.00019232,2]
[362264439,1748128242607,-420.0,0.00019232,2]
[362264440,1748128242618,-420.0,0.00019232,2]
[362264441,1748128242627,-420.0,0.00019232,2]
[362264442,1748128242637,-420.0,0.00019232,2]
[362264443,1748128242647,-1856.9,0.00019232,2]
[362264444,1748128242656,-403.744631,0.00019232,2]
[362264445,1748128242665,-420.0,0.00019232,2]
[362264446,1748128242675,-441.86,0.00019232,2]
[362264447,1748128242684,-420.0,0.00019232,2]
[362264448,1748128242694,-420.0,0.00019232,2]
[362264449,1748128242703,-420.0,0.00019232,2]
[362264450,1748128242713,-420.0,0.00019232,2]
[362264451,1748128242722,-420.0,0.00019232,2]
[362264452,1748128242731,-420.0,0.00019232,2]
[362264453,1748128242740,-1098.4,0.00019232,2]
[362264454,1748128242750,-420.0,0.00019232,2]
[362264455,1748128242760,-420.0,0.00019232,2]
[362264456,1748128242769,-239.76307217,0.00019232,2]
[362264457,1748128242779,-420.0,0.00019232,2]
[362264458,1748128242788,-985.24,0.00019232,2]
[362264459,1748128242799,-420.0,0.00019232,2]
[362264460,1748128242815,-420.0,0.00019232,2]
[362264461,1748128242824,-420.0,0.00019232,2]
[362264462,1748128242834,-420.0,0.00019232,2]
[362264463,1748128242843,-420.0,0.00019232,2]
[362264464,1748128242852,-420.0,0.00019232,2]
[362264465,1748128242862,-420.0,0.00019232,2]
[362264466,1748128242873,-420.0,0.00019232,2]
[362264467,1748128242883,-420.0,0.00019232,2]
[362264468,1748128242892,-420.0,0.00019232,2]
[362264469,1748128242902,-420.0,0.00019232,2]
[362264470,1748128242911,-420.0,0.00019232,2]
[362264471,1748128242921,-470.80251645,0.00019232,2]
[362264472,1748128242931,-420.0,0.00019232,2]
[362264473,1748128242940,-420.0,0.00019232,2]
[362264474,1748128242949,-3151.76,0.00019232,2]
[362264475,1748128242959,-420.0,0.00019232,2]
[362264476,1748128242968,-555.74,0.00019232,2]
[362264477,1748128242977,-420.0,0.00019232,2]
[362264478,1748128242987,-420.0,0.00019232,2]
[362264479,1748128242996,-420.0,0.00019232,2]
[362264480,1748128243006,-1907.22,0.00019232,2]
[362264481,1748128243015,-420.0,0.00019232,2]
[362264482,1748128243024,-420.0,0.00019232,2]
[362264483,1748128243034,-420.0,0.00019232,2]
[362264484,1748128243044,-1270.47,0.00019232,2]
[362264485,1748128243053,-500.84,0.00019232,2]
[362264486,1748128243063,-289.65474045,0.00019232,2]
[362264487,1748128243072,-420.0,0.00019232,2]
[362264488,1748128243081,-420.0,0.00019232,2]
[362264489,1748128243091,-420.0,0.00019232,2]
[362264491,1748128243100,-564.31,0.00019232,2]
[362264493,1748128243110,-420.0,0.00019232,2]
[362264494,1748128243121,-366.47707242,0.00019232,2]
[362264495,1748128243131,-420.0,0.00019232,2]
[362264496,1748128243140,-420.0,0.00019232,2]
[362264497,1748128243150,-512.04,0.00019232,2]
[362264498,1748128243159,-420.0,0.00019232,2]
[362264500,1748128243168,-420.0,0.00019232,2]
[362264502,1748128243178,-1497.71,0.00019232,2]
[362264504,1748128243188,-822.31,0.00019232,2]
[362264506,1748128243197,-239.54097082,0.00019232,2]
[362264509,1748128243434,-180.45902918,0.00019232,2]
[362264510,1748128243444,-420.0,0.00019232,2]
[362264511,1748128243454,-2131.86,0.00019232,2]
[362264512,1748128243464,-420.0,0.00019232,2]
[362264513,1748128243475,-420.0,0.00019232,2]
[362264514,1748128243487,-420.0,0.00019232,2]
[362264515,1748128243498,-1551.8,0.00019232,2]
[362264516,1748128243513,-420.0,0.00019232,2]
[362264517,1748128243523,-420.0,0.00019232,2]
[362264518,1748128243532,-420.0,0.00019232,2]
[362264519,1748128243541,-115.43531642,0.00019232,2]
[362264520,1748128243553,-304.56468358,0.00019232,2]
[362264521,1748128243562,-721.79,0.00019232,2]
[362264522,1748128243572,-420.0,0.00019232,2]
[362264523,1748128243581,-466.41,0.00019232,2]
[362264524,1748128243591,-250.0,0.00019233,2]
[362264525,1748128243601,-168.82523799,0.00019238,2]
[362264526,1748128243611,-500.0,0.00019259,2]
[362264527,1748128243623,-500.0,0.00019259,2]
[362264528,1748128243634,-554.61049818,0.0001926,2]
[362264529,1748128243643,-420.0,0.0001926,2]
[362264530,1748128243654,-420.0,0.0001926,2]
[362264531,1748128243664,-420.0,0.0001926,2]
[362264532,1748128243675,-420.0,0.0001926,2]
[362264533,1748128243686,-420.0,0.0001926,2]
[362264534,1748128243696,-420.0,0.0001926,2]
[362264535,1748128243706,-420.0,0.0001926,2]
[362264536,1748128243717,-420.0,0.0001926,2]
[362264537,1748128243727,-198.06552988,0.0001926,2]
[362264538,1748128243737,-420.0,0.0001926,2]
[362264539,1748128243746,-420.0,0.0001926,2]
[362264540,1748128243756,-1650.05380635,0.0001926,2]
[362264541,1748128243769,-206.84619365,0.0001926,2]
[362264542,1748128243778,-403.744631,0.0001926,2]
[362264543,1748128243787,-420.0,0.0001926,2]
[362264544,1748128243797,-441.86,0.0001926,2]
[362264545,1748128243806,-420.0,0.0001926,2]
[362264546,1748128243815,-420.0,0.0001926,2]
[362264547,1748128243826,-420.0,0.0001926,2]
[362264548,1748128243835,-420.0,0.0001926,2]
[362264549,1748128243846,-420.0,0.0001926,2]
[362264550,1748128243857,-419.73274662,0.0001926,2]
[362264551,1748128243870,-1098.4,0.0001926,2]
[362264552,1748128243880,-420.0,0.0001926,2]
[362264553,1748128243891,-420.0,0.0001926,2]
[362264554,1748128243901,-985.24,0.0001926,2]
[362264555,1748128243911,-420.0,0.0001926,2]
[362264556,1748128243921,-420.0,0.0001926,2]
[362264557,1748128243930,-420.0,0.0001926,2]
[362264558,1748128243940,-420.0,0.0001926,2]
[362264559,1748128243950,-534.06,0.0001926,2]
[362264560,1748128243959,-420.0,0.0001926,2]
[362264561,1748128243970,-420.0,0.0001926,2]
[362264562,1748128243981,-420.0,0.0001926,2]
[362264563,1748128243992,-420.0,0.0001926,2]
[362264564,1748128244002,-420.0,0.0001926,2]
[362264565,1748128244012,-420.0,0.0001926,2]
[362264566,1748128244021,-3151.76,0.0001926,2]
[362264567,1748128244031,-555.74,0.0001926,2]
[362264568,1748128244041,-420.0,0.0001926,2]
[362264569,1748128244050,-420.0,0.0001926,2]
[362264570,1748128244060,-1907.22,0.0001926,2]
[362264571,1748128244069,-420.0,0.0001926,2]
[362264572,1748128244078,-420.0,0.0001926,2]
[362264573,1748128244088,-420.0,0.0001926,2]
[362264574,1748128244097,-889.67936604,0.0001926,2]
[362264575,1748128244110,-380.79063396,0.0001926,2]
[362264576,1748128244122,-500.84,0.0001926,2]
[362264577,1748128244132,-420.0,0.0001926,2]
[362264578,1748128244141,-420.0,0.0001926,2]
[362264579,1748128244151,-420.0,0.0001926,2]
[362264580,1748128244160,-564.31,0.0001926,2]
[362264581,1748128244169,-85.49012604,0.0001926,2]
[362264582,1748128244181,-334.50987396,0.0001926,2]
[362264583,1748128244190,-420.0,0.0001926,2]
[362264584,1748128244200,-420.0,0.0001926,2]
[362264586,1748128244210,-420.0,0.0001926,2]
[362264588,1748128244219,-420.0,0.0001926,2]
[362264590,1748128244229,-1211.72008937,0.0001926,2]
[362264592,1748128244240,-285.98991063,0.0001926,2]
[362264594,1748128244249,-822.31,0.0001926,2]
[362264596,1748128244259,-420.0,0.0001926,2]
[362264598,1748128244270,-420.0,0.0001926,2]
[362264600,1748128244281,-2131.86,0.0001926,2]
[362264602,1748128244290,-420.0,0.0001926,2]
[362264604,1748128244299,-420.0,0.0001926,2]
[362264606,1748128244308,-1551.8,0.0001926,2]
[362264608,1748128244318,-420.0,0.0001926,2]
[362264615,1748128244377,-420.0,0.0001926,2]
[362264617,1748128244386,-679.94008939,0.0001926,2]
[362264619,1748128244397,-41.84991061,0.0001926,2]
[362264621,1748128244408,-420.0,0.0001926,2]
[362264623,1748128244419,-466.41,0.0001926,2]
[362264625,1748128244427,-1432.68209154,0.00019261,2]
[362264627,1748128244436,-500.0,0.00019273,2]
[362264629,1748128244445,-500.0,0.00019273,2]
[362264631,1748128244454,-505.00798943,0.00019273,2]
[362264633,1748128244465,-310.38147092,0.00019273,2]
[362264635,1748128244479,-189.61852908,0.00019273,2]
[362264637,1748128244489,-500.0,0.00019273,2]
[362264639,1748128244499,-2095.72707714,0.00019282,2]
[362264641,1748128244508,-420.0,0.00019287,2]
[362264642,1748128244517,-71.7648814,0.00019287,2]
[362264648,1748128244595,-348.2351186,0.00019287,2]
[362264649,1748128244605,-420.0,0.00019287,2]
[362264650,1748128244615,-457.91286068,0.00019287,2]
[362264651,1748128244624,-420.0,0.00019287,2]
[362264652,1748128244636,-420.0,0.00019287,2]
[362264653,1748128244645,-420.0,0.00019287,2]
[362264654,1748128244655,-420.0,0.00019287,2]
[362264655,1748128244665,-420.0,0.00019287,2]
[362264656,1748128244675,-1856.9,0.00019287,2]
[362264657,1748128244685,-403.744631,0.00019287,2]
[362264658,1748128244694,-420.0,0.00019287,2]
[362264659,1748128244703,-441.86,0.00019287,2]
[362264660,1748128244712,-420.0,0.00019287,2]
[362264661,1748128244722,-420.0,0.00019287,2]
[362264662,1748128244733,-420.0,0.00019287,2]
[362264663,1748128244743,-420.0,0.00019287,2]
[362264664,1748128244755,-420.0,0.00019287,2]
[362264665,1748128244767,-1098.4,0.00019287,2]
[362264666,1748128244777,-420.0,0.00019287,2]
[362264667,1748128244787,-420.0,0.00019287,2]
[362264668,1748128244797,-985.24,0.00019287,2]
[362264669,1748128244808,-420.0,0.00019287,2]
[362264670,1748128244818,-420.0,0.00019287,2]
[362264671,1748128244828,-420.0,0.00019287,2]
[362264672,1748128244840,-420.0,0.00019287,2]
[362264673,1748128244850,-420.0,0.00019287,2]
[362264674,1748128244860,-420.0,0.00019287,2]
[362264675,1748128244871,-420.0,0.00019287,2]
[362264676,1748128244881,-420.0,0.00019287,2]
[362264677,1748128244894,-3151.76,0.00019287,2]
[362264678,1748128244905,-555.74,0.00019287,2]
[362264679,1748128244915,-420.0,0.00019287,2]
[362264680,1748128244923,-420.0,0.00019287,2]
[362264681,1748128244932,-1907.22,0.00019287,2]
[362264682,1748128244943,-420.0,0.00019287,2]
[362264683,1748128244953,-420.0,0.00019287,2]
[362264684,1748128244962,-420.0,0.00019287,2]
[362264685,1748128244971,-1270.47,0.00019287,2]
[362264686,1748128244981,-500.84,0.00019287,2]
[362264687,1748128244991,-420.0,0.00019287,2]
[362264688,1748128245001,-420.0,0.00019287,2]
[362264689,1748128245011,-192.64670434,0.00019287,2]
[362264690,1748128245020,-564.31,0.00019287,2]
[362264691,1748128245029,-420.0,0.00019287,2]
[362264692,1748128245038,-420.0,0.00019287,2]
[362264693,1748128245048,-420.0,0.00019287,2]
[362264694,1748128245058,-420.0,0.00019287,2]
[362264695,1748128245069,-420.0,0.00019287,2]
[362264696,1748128245078,-1497.71,0.00019287,2]
[362264697,1748128245087,-822.31,0.00019287,2]
[362264698,1748128245097,-420.0,0.00019287,2]
[362264699,1748128245106,-420.0,0.00019287,2]
[362264700,1748128245116,-2131.86,0.00019287,2]
[362264701,1748128245126,-420.0,0.00019287,2]
[362264702,1748128245135,-420.0,0.00019287,2]
[362264703,1748128245144,-1551.8,0.00019287,2]
[362264704,1748128245153,-420.0,0.00019287,2]
[362264705,1748128245163,-721.79,0.00019287,2]
[362264706,1748128245173,-420.0,0.00019287,2]
[362264707,1748128245182,-466.41,0.00019287,2]
[362264708,1748128245192,-162.91,0.000193,2]
[362264709,1748128245202,-170.2,0.000193,2]
[362264710,1748128245211,-170.2,0.000193,2]
[362264711,1748128245220,-420.0,0.00019315,2]
[362264712,1748128245230,-378.58468538,0.00019315,2]
[362264713,1748128245242,-41.41531462,0.00019315,2]
[362264714,1748128245252,-420.0,0.00019315,2]
[362264715,1748128245262,-420.0,0.00019315,2]
[362264716,1748128245271,-420.0,0.00019315,2]
[362264717,1748128245280,-420.0,0.00019315,2]
[362264718,1748128245289,-420.0,0.00019315,2]
[362264719,1748128245299,-420.0,0.00019315,2]
[362264720,1748128245308,-1856.9,0.00019315,2]
[362264721,1748128245317,-420.0,0.00019315,2]
[362264722,1748128245326,-403.744631,0.00019315,2]
[362264723,1748128245335,-441.86,0.00019315,2]
[362264724,1748128245345,-420.0,0.00019315,2]
[362264725,1748128245354,-420.0,0.00019315,2]
[362264726,1748128245363,-420.0,0.00019315,2]
[362264727,1748128245373,-420.0,0.00019315,2]
[362264728,1748128245382,-1098.4,0.00019315,2]
[362264729,1748128245391,-420.0,0.00019315,2]
[362264730,1748128245400,-420.0,0.00019315,2]
[362264731,1748128245409,-985.24,0.00019315,2]
[362264733,1748128245418,-420.0,0.00019315,2]
[362264734,1748128245428,-420.0,0.00019315,2]
[362264735,1748128245437,-420.0,0.00019315,2]
[362264736,1748128245447,-420.0,0.00019315,2]
[362264737,1748128245456,-420.0,0.00019315,2]
[362264738,1748128245466,-420.0,0.00019315,2]
[362264739,1748128245475,-420.0,0.00019315,2]
[362264741,1748128245485,-420.0,0.00019315,2]
[362264742,1748128245495,-3151.76,0.00019315,2]
[362264743,1748128245504,-555.74,0.00019315,2]
[362264744,1748128245514,-420.0,0.00019315,2]
[362264745,1748128245523,-1907.22,0.00019315,2]
[362264746,1748128245533,-420.0,0.00019315,2]
[362264747,1748128245542,-466.87749439,0.00019315,2]
[362264748,1748128245553,-532.76,0.00019315,2]
[362264749,1748128245564,-1270.47,0.00019315,2]
[362264750,1748128245579,-500.84,0.00019315,2]
[362264751,1748128245590,-420.0,0.00019315,2]
[362264752,1748128245600,-420.0,0.00019315,2]
[362264753,1748128245611,-564.31,0.00019315,2]
[362264754,1748128245622,-420.0,0.00019315,2]
[362264755,1748128245631,-420.0,0.00019315,2]
[362264756,1748128245641,-420.0,0.00019315,2]
[362264757,1748128245651,-1497.71,0.00019315,2]
[362264758,1748128245661,-822.31,0.00019315,2]
[362264759,1748128245670,-176.9,0.00019315,2]
[362264760,1748128245679,-420.0,0.00019315,2]
[362264761,1748128245688,-2131.86,0.00019315,2]
[362264762,1748128245697,-420.0,0.00019315,2]
[362264763,1748128245706,-420.0,0.00019315,2]
[362264764,1748128245715,-1551.8,0.00019315,2]
[362264765,1748128245725,-420.0,0.00019315,2]
[362264766,1748128245734,-721.79,0.00019315,2]
[362264767,1748128245744,-420.0,0.00019315,2]
[362264768,1748128245754,-466.41,0.00019315,2]
[362264769,1748128245763,-290.84052362,0.00019316,2]
[362264770,1748128245773,-446.19,0.00019342,2]
[362264771,1748128245782,-420.0,0.00019342,2]
[362264772,1748128245792,-466.04,0.00019342,2]
[362264773,1748128245802,-420.0,0.00019342,2]
[362264774,1748128245812,-420.0,0.00019342,2]
[362264775,1748128245823,-420.0,0.00019342,2]
[362264776,1748128245833,-420.0,0.00019342,2]
[362264777,1748128245842,-1856.9,0.00019342,2]
[362264778,1748128245853,-420.0,0.00019342,2]
[362264779,1748128245862,-441.86,0.00019342,2]
[362264780,1748128245873,-420.0,0.00019342,2]
[362264781,1748128245882,-420.0,0.00019342,2]
[362264782,1748128245892,-420.0,0.00019342,2]
[362264783,1748128245902,-420.0,0.00019342,2]
[362264784,1748128245911,-1098.4,0.00019342,2]
[362264785,1748128245921,-420.0,0.00019342,2]
[362264786,1748128245931,-985.24,0.00019342,2]